[Event "56th Rubinstein Memorial C 2020"]
[Site "Polanica Zdroj"]
[Date "2020.08.20"]
[Round "6.11"]
[White "Lambrecht, Tomasz"]
[Black "Karut, Kacper"]
[Result "*"]
[ECO "E73"]
[WhiteElo "1750"]
[BlackElo "1638"]
[Annotator "NA"]
[PlyCount "21"]
[EventDate "2020.08.15"]
[EventType "swiss"]
[EventCountry "POL"]
[SourceTitle "playchess.com"]
[Source "ChessBase"]
[SourceQuality "1"]
[TimeControl "40/5400+30:1800+30"]

1. d4 {[%emt 0:00:00]} Nf6 {[%emt 0:00:00]} 2. c4 {[%emt 0:00:00]} g6 {[%emt 0:00:00]} 3. Nc3 {[%emt 0:00:19]} Bg7 {[%emt 0:00:00]} 4. e4 {[%emt 0:00:20]} d6 {[%emt 0:00:00]} 5. Be2 {[%emt 0:00:30]} O-O {[%emt 0:00:08]} 6. Be3 {[%emt 0:00:22]} e5 {[%emt 0:00:36]} 7. d5 {[%emt 0:00:51]} a5 {[%emt 0:00:21]} 8. g4 {[%emt 0:01:07]} Na6 {[%emt 0:00:51]} 9. g5 {[%emt 0:03:04]} Ne8 {[%emt 0:07:22]} 10. h4 {[%emt 0:00:39]} f5 {[%emt 0:07:53]} 11. gxf6 {[%emt 0:02:03]} *

[Event "56th Rubinstein Memorial C 2020"]
[Site "Polanica Zdroj"]
[Date "2020.08.20"]
[Round "6.12"]
[White "Kejna, Piotr"]
[Black "Jedrzejko, Martyna"]
[Result "1-0"]
[ECO "A08"]
[WhiteElo "1767"]
[BlackElo "1570"]
[Annotator "NA"]
[PlyCount "121"]
[EventDate "2020.08.15"]
[EventType "swiss"]
[EventCountry "POL"]
[SourceTitle "playchess.com"]
[Source "ChessBase"]
[SourceQuality "1"]
[TimeControl "40/5400+30:1800+30"]

1. Nf3 {[%emt 0:00:00]} c5 {[%emt 0:01:31]} 2. g3 {[%emt 0:00:00]} d5 {[%emt 0:01:43]} 3. Bg2 {[%emt 0:00:00]} g6 {[%emt 0:02:46]} 4. d3 {[%emt 0:01:27]} Bg7 {[%emt 0:00:54]} 5. c3 {[%emt 0:00:24]} Nc6 {[%emt 0:01:19]} 6. O-O {[%emt 0:00:14]} e6 {[%emt 0:06:17]} 7. Nbd2 {[%emt 0:00:41]} Nge7 {[%emt 0:00:22]} 8. e4 {[%emt 0:01:49]} O-O {[%emt 0:09:20]} 9. a4 {[%emt 0:02:29]} Rb8 {[%emt 0:06:07]} 10. Re1 {[%emt 0:04:06]} d4 {[%emt 0:03:40]} 11. cxd4 {[%emt 0:00:36]} Nxd4 {[%emt 0:00:16]} 12. Nxd4 {[%emt 0:01:30]} cxd4 {[%emt 0:03:34]} 13. Nc4 {[%emt 0:01:19]} e5 {[%emt 0:02:21]} 14. Bd2 {[%emt 0:01:10]} Be6 {[%emt 0:04:29]} 15. b3 {[%emt 0:00:26]} Nc6 {[%emt 0:01:55]} 16. f4 {[%emt 0:02:47]} f6 {[%emt 0:00:37]} 17. Qc2 {[%emt 0:04:44]} a5 {[%emt 0:06:49]} 18. Rab1 {[%emt 0:05:59]} b5 {[%emt 0:05:18]} 19. Na3 {[%emt 0:05:22]} Na7 {[%emt 0:03:17]} 20. Qc5 {[%emt 0:08:56]} Rf7 {[%emt 0:05:05]} 21. Nxb5 {[%emt 0:02:15]} Nxb5 {[%emt 0:01:34]} 22. axb5 {[%emt 0:00:12]} Bf8 {[%emt 0:01:54]} 23. Qc2 {[%emt 0:06:04]} Rxb5 {[%emt 0:01:45]} 24. Qc6 {[%emt 0:09:58]} Qd7 {[%emt 0:04:01]} 25. Qa6 {[%emt 0:02:48]} Rxb3 {[%emt 0:02:58]} 26. Bxa5 {[%emt 0:12:10]} Qb7 {[%emt 0:05:58]} 27. Qxb7 {[%emt 0:01:29]} Rfxb7 {[%emt 0:00:06]} 28. Rxb3 {[%emt 0:00:27]} Rxb3 {[%emt 0:00:10]} 29. fxe5 {[%emt 0:02:33]} fxe5 {[%emt 0:00:24]} 30. Bf1 {[%emt 0:01:31]} Bh6 {[%emt 0:07:06]} 31. Bc7 {[%emt 0:01:03]} Be3+ {[%emt 0:06:19]} 32. Kh1 {[%emt 0:02:14]} Bg4 {[%emt 0:01:00]} 33. Bxe5 {[%emt 0:02:48]} Rxd3 {[%emt 0:00:28]} 34. Be2 {[%emt 0:05:17]} Bxe2 {[%emt 0:00:33]} 35. Rxe2 {[%emt 0:00:11]} Bh6 {[%emt 0:02:28]} 36. Kg2 {[%emt 0:01:37]} Re3 {[%emt 0:00:42]} 37. Rxe3 {[%emt 0:00:21]} Bxe3 {[%emt 0:00:07]} 38. Kf3 {[%emt 0:00:17]} Kf7 {[%emt 0:00:12]} 39. Ke2 {[%emt 0:00:13]} Ke6 {[%emt 0:00:21]} 40. Bh8 {[%emt 0:00:00]} Bg1 {[%emt 0:00:00]} 41. h3 {[%emt 0:00:39]} Kd6 {[%emt 0:02:43]} 42. Kd3 {[%emt 0:00:35]} Kc5 {[%emt 0:00:10]} 43. Bf6 {[%emt 0:00:59]} Be3 {[%emt 0:01:02]} 44. Be7+ {[%emt 0:00:14]} Kb5 {[%emt 0:00:57]} 45. Bd6 {[%emt 0:01:52]} Kc6 {[%emt 0:01:01]} 46. Bb8 {[%emt 0:00:13]} Kc5 {[%emt 0:04:20]} 47. Ba7+ {[%emt 0:00:05]} Kd6 {[%emt 0:00:03]} 48. Bxd4 {[%emt 0:00:07]} Bxd4 {[%emt 0:00:02]} 49. Kxd4 {[%emt 0:00:06]} Ke6 {[%emt 0:00:35]} 50. e5 {[%emt 0:00:30]} h6 {[%emt 0:01:56]} 51. Ke4 {[%emt 0:00:24]} h5 {[%emt 0:00:49]} 52. h4 {[%emt 0:00:06]} Ke7 {[%emt 0:01:03]} 53. Kd5 {[%emt 0:00:13]} Kd7 {[%emt 0:00:45]} 54. e6+ {[%emt 0:00:06]} Ke7 {[%emt 0:00:07]} 55. Ke5 {[%emt 0:00:05]} Ke8 {[%emt 0:00:14]} 56. Kf6 {[%emt 0:00:04]} Kf8 {[%emt 0:00:04]} 57. e7+ {[%emt 0:00:16]} Ke8 {[%emt 0:00:04]} 58. Ke6 {[%emt 0:00:11]} g5 {[%emt 0:00:06]} 59. hxg5 {[%emt 0:00:06]} h4 {[%emt 0:00:07]} 60. g6 {[%emt 0:00:07]} hxg3 {[%emt 0:00:05]} 61. g7 {[%emt 0:00:06]} 1-0

[Event "56th Rubinstein Memorial C 2020"]
[Site "Polanica Zdroj"]
[Date "2020.08.20"]
[Round "6.13"]
[White "Plichta, Krzysztof"]
[Black "Grot, Blazej"]
[Result "1-0"]
[ECO "A46"]
[WhiteElo "1605"]
[BlackElo "1768"]
[Annotator "NA"]
[PlyCount "81"]
[EventDate "2020.08.15"]
[EventType "swiss"]
[EventCountry "POL"]
[SourceTitle "playchess.com"]
[Source "ChessBase"]
[SourceQuality "1"]
[TimeControl "40/5400+30:1800+30"]

1. d4 {[%emt 0:04:22]} Nf6 {[%emt 0:00:00]} 2. Nf3 {[%emt 0:04:30]} e6 {[%emt 0:00:54]} 3. Bf4 {[%emt 0:03:25]} d5 {[%emt 0:00:27]} 4. e3 {[%emt 0:00:30]} c5 {[%emt 0:01:11]} 5. c3 {[%emt 0:02:26]} Nc6 {[%emt 0:01:27]} 6. Bd3 {[%emt 0:03:12]} Bd6 {[%emt 0:00:23]} 7. Bg3 {[%emt 0:08:08]} O-O {[%emt 0:00:55]} 8. Nbd2 {[%emt 0:01:33]} Qe7 {[%emt 0:01:04]} 9. Bh4 {[%emt 0:12:27]} e5 {[%emt 0:03:45]} 10. dxe5 {[%emt 0:02:14]} Nxe5 {[%emt 0:02:59]} 11. Nxe5 {[%emt 0:00:38]} Bxe5 {[%emt 0:01:21]} 12. Qh5 {[%emt 0:08:55]} h6 {[%emt 0:04:07]} 13. Nf3 {[%emt 0:02:39]} Bd6 {[%emt 0:01:32]} 14. Bxf6 {[%emt 0:01:09]} Qxf6 {[%emt 0:00:07]} 15. Qxd5 {[%emt 0:01:08]} Rd8 {[%emt 0:00:10]} 16. Qe4 {[%emt 0:02:57]} g6 {[%emt 0:00:21]} 17. Qh4 {[%emt 0:02:07]} Qxh4 {[%emt 0:00:25]} 18. Nxh4 {[%emt 0:00:17]} Be7 {[%emt 0:00:05]} 19. Nxg6 {[%emt 0:02:49]} Rxd3 {[%emt 0:00:38]} 20. Nxe7+ {[%emt 0:00:15]} Kf8 {[%emt 0:00:04]} 21. Nxc8 {[%emt 0:00:32]} Rxc8 {[%emt 0:00:13]} 22. Rd1 {[%emt 0:01:07]} Rxd1+ {[%emt 0:00:09]} 23. Kxd1 {[%emt 0:00:07]} Ke7 {[%emt 0:00:03]} 24. Ke2 {[%emt 0:00:35]} Rc6 {[%emt 0:00:05]} 25. Rd1 {[%emt 0:01:02]} Ra6 {[%emt 0:00:12]} 26. a3 {[%emt 0:00:20]} Rb6 {[%emt 0:00:03]} 27. Rd2 {[%emt 0:00:35]} Ke6 {[%emt 0:00:09]} 28. f4 {[%emt 0:00:44]} f5 {[%emt 0:00:19]} 29. Kf3 {[%emt 0:00:16]} c4 {[%emt 0:00:39]} 30. g4 {[%emt 0:00:59]} fxg4+ {[%emt 0:00:35]} 31. Kxg4 {[%emt 0:00:17]} Kf6 {[%emt 0:00:06]} 32. e4 {[%emt 0:00:22]} Rb5 {[%emt 0:00:06]} 33. f5 {[%emt 0:02:10]} a5 {[%emt 0:01:02]} 34. Kf4 {[%emt 0:00:38]} h5 {[%emt 0:00:07]} 35. e5+ {[%emt 0:00:17]} Ke7 {[%emt 0:00:05]} 36. f6+ {[%emt 0:01:29]} Ke6 {[%emt 0:00:08]} 37. Rd6+ {[%emt 0:00:06]} Kf7 {[%emt 0:00:04]} 38. Rd7+ {[%emt 0:01:08]} Ke8 {[%emt 0:00:11]} 39. e6 {[%emt 0:00:19]} Rb6 {[%emt 0:00:17]} 40. f7+ {[%emt 0:00:00]} Kf8 {[%emt 0:00:00]} 41. Rd8+ {[%emt 0:00:26]} 1-0

[Event "56th Rubinstein Memorial C 2020"]
[Site "Polanica Zdroj"]
[Date "2020.08.20"]
[Round "6.14"]
[White "Szopa, Emilia"]
[Black "Zalega, Maciej"]
[Result "1-0"]
[ECO "B56"]
[WhiteElo "1628"]
[BlackElo "1743"]
[Annotator "NA"]
[PlyCount "67"]
[EventDate "2020.08.15"]
[EventType "swiss"]
[EventCountry "POL"]
[SourceTitle "playchess.com"]
[Source "ChessBase"]
[SourceQuality "1"]
[TimeControl "40/5400+30:1800+30"]

1. e4 {[%emt 0:00:00]} c5 {[%emt 0:00:00]} 2. Nf3 {[%emt 0:00:02]} d6 {[%emt 0:00:00]} 3. d4 {[%emt 0:00:30]} cxd4 {[%emt 0:00:00]} 4. Nxd4 {[%emt 0:00:08]} Nf6 {[%emt 0:00:02]} 5. Nc3 {[%emt 0:00:08]} Nc6 {[%emt 0:00:02]} 6. f3 {[%emt 0:01:12]} e5 {[%emt 0:00:10]} 7. Nb3 {[%emt 0:00:05]} Be7 {[%emt 0:00:36]} 8. Be3 {[%emt 0:00:17]} O-O {[%emt 0:00:33]} 9. Be2 {[%emt 0:01:23]} a5 {[%emt 0:01:07]} 10. O-O {[%emt 0:00:42]} a4 {[%emt 0:04:21]} 11. Nd2 {[%emt 0:00:12]} a3 {[%emt 0:13:04]} 12. b3 {[%emt 0:03:35]} Qa5 {[%emt 0:02:23]} 13. Na4 {[%emt 0:04:11]} b5 {[%emt 0:02:22]} 14. Nb6 {[%emt 0:03:57]} Rb8 {[%emt 0:01:32]} 15. Nxc8 {[%emt 0:02:28]} Rbxc8 {[%emt 0:02:47]} 16. c4 {[%emt 0:01:17]} Nb4 {[%emt 0:02:10]} 17. Bf2 {[%emt 0:03:00]} Rfd8 {[%emt 0:07:48]} 18. cxb5 {[%emt 0:03:33]} d5 {[%emt 0:00:47]} 19. exd5 {[%emt 0:02:59]} Rxd5 {[%emt 0:05:01]} 20. Bc4 {[%emt 0:00:58]} Rd7 {[%emt 0:00:58]} 21. Qe2 {[%emt 0:02:36]} Nc2 {[%emt 0:01:11]} 22. Rad1 {[%emt 0:01:03]} Nb4 {[%emt 0:34:34]} 23. Qxe5 {[%emt 0:15:35]} Nxa2 {[%emt 0:04:14]} 24. Ne4 {[%emt 0:01:16]} Rcd8 {[%emt 0:06:31]} 25. Rxd7 {[%emt 0:01:17]} Rxd7 {[%emt 0:00:09]} 26. Nxf6+ {[%emt 0:00:36]} gxf6 {[%emt 0:00:02]} 27. Qh5 {[%emt 0:00:12]} Qd8 {[%emt 0:00:41]} 28. Qxf7+ {[%emt 0:03:32]} Kh8 {[%emt 0:00:03]} 29. Re1 {[%emt 0:00:46]} Nc3 {[%emt 0:05:29]} 30. Rxe7 {[%emt 0:01:38]} Rd1+ {[%emt 0:00:38]} 31. Be1 {[%emt 0:03:02]} Ne2+ {[%emt 0:02:15]} 32. Rxe2 {[%emt 0:00:28]} a2 {[%emt 0:00:09]} 33. Re8+ {[%emt 0:00:15]} Qxe8 {[%emt 0:00:02]} 34. Qxf6# {[%emt 0:00:04]} 1-0

[Event "56th Rubinstein Memorial C 2020"]
[Site "Polanica Zdroj"]
[Date "2020.08.20"]
[Round "6.15"]
[White "Ciechonski, Piotr"]
[Black "Kolodziejski, Grzegorz"]
[Result "1/2-1/2"]
[ECO "B23"]
[WhiteElo "1774"]
[BlackElo "1550"]
[Annotator "NA"]
[PlyCount "98"]
[EventDate "2020.08.15"]
[EventType "swiss"]
[EventCountry "POL"]
[SourceTitle "playchess.com"]
[Source "ChessBase"]
[SourceQuality "1"]
[TimeControl "40/5400+30:1800+30"]

1. e4 c5 2. Nc3 Nc6 3. f4 g6 4. Nf3 Bg7 5. Bc4 e6 6. d3 Nge7 7. f5 exf5 8. O-O O-O 9. Bg5 fxe4 10. dxe4 h6 11. Bh4 d6 12. Nb5 a6 13. Nxd6 Be6 14. c3 Bxc4 15. Nxc4 b5 16. Ne3 Qb6 17. Qc2 c4 18. Bf2 Qb7 19. Rad1 Rad8 20. Nd5 Nxd5 21. exd5 Ne7 22. Bc5 Rfe8 23. d6 Nf5 24. Rfe1 Rxe1+ 25. Nxe1 Qc6 26. Qf2 Nxd6 27. Nf3 Nb7 28. Rxd8+ Nxd8 29. Bd4 Ne6 30. Bxg7 Nxg7 31. Qa7 Nf5 32. Qxf7+ Kxf7 33. Ne5+ Ke6 34. Nxc6 Kd6 35. Nb4 a5 36. Nc2 Kc5 37. Kf2 b4 38. g4 Nd6 39. cxb4+ axb4 40. Ke3 Nb5 41. Ke4 b3 42. axb3 cxb3 43. Ne3 Nd4 44. Nd5 Nf3 45. Kxf3 Kxd5 46. Ke3 h5 47. gxh5 gxh5 48. Kd3 h4 49. h3 Ke5 1/2-1/2

[Event "56th Rubinstein Memorial C 2020"]
[Site "Polanica Zdroj"]
[Date "2020.08.21"]
[Round "7.6"]
[White "Plichta, Krzysztof"]
[Black "Janzer, Hubert"]
[Result "0-1"]
[ECO "C00"]
[WhiteElo "1605"]
[BlackElo "1893"]
[Annotator "NA RC"]
[PlyCount "60"]
[EventDate "2020.08.15"]
[EventType "swiss"]
[EventCountry "POL"]
[SourceTitle "playchess.com"]
[Source "ChessBase"]
[SourceQuality "1"]
[TimeControl "40/5400+30:1800+30"]

1. e4 e6 2. Qe2 Be7 3. g3 d5 4. d3 c5 5. Bg2 Nc6 6. Nf3 {C00: French: Unusual White 2nd moves.} b6 7. b3 Bb7 8. Bb2 Nf6 9. O-O O-O 10. Nbd2 {[#]} a5 $146 ({Predecessor:} 10... Qc7 11. e5 Nd7 12. c4 d4 13. Rfe1 Rae8 14. a3 a5 15. Bc1 Ba8 16. Ne4 Ndxe5 17. Nxe5 Nxe5 {½-½ (35) Kovalevskaya,E (2466)-Halkias,S (2533) Moscow 2005}) 11. a4 Ra7 12. h4 Nb4 13. Rac1 Ba6 14. Nh2 dxe4 15. Nxe4 Nxe4 16. Bxe4 Bf6 17. Qh5 g6 18. Bxf6 Qxf6 19. Ng4 Qg7 20. Qe5 {[#]} f5 $1 {Double Attack} 21. Qxe6+ Kh8 22. Qxb6 (22. Bg2 {was necessary.} fxg4 23. Qxb6) 22... fxe4 23. dxe4 $19 Bxf1 24. Kxf1 Re7 25. Qxc5 Rxe4 26. Re1 Rxg4 27. Re7 Qf6 28. Qa7 Nc6 29. Rxh7+ Kg8 30. h5 Nxa7 0-1

[Event "56th Rubinstein Memorial C 2020"]
[Site "Polanica Zdroj"]
[Date "2020.08.21"]
[Round "7.7"]
[White "Lewandrowski, Tomasz"]
[Black "Kejna, Piotr"]
[Result "1-0"]
[ECO "A49"]
[WhiteElo "1879"]
[BlackElo "1767"]
[Annotator "NA RC"]
[PlyCount "91"]
[EventDate "2020.08.15"]
[EventType "swiss"]
[EventCountry "POL"]
[SourceTitle "playchess.com"]
[Source "ChessBase"]
[SourceQuality "1"]
[TimeControl "40/5400+30:1800+30"]

1. d4 {[%emt 0:00:00]} Nf6 {[%emt 0:00:00]} 2. Nf3 {[%emt 0:00:00]} g6 {[%emt 0:00:01]} 3. g3 {[%emt 0:00:37]} Bg7 {[%emt 0:00:16]} 4. Bg2 {[%emt 0:00:13]} d6 {[%emt 0:00:45]} 5. O-O {[%emt 0:00:36]} O-O {[%emt 0:01:16]} 6. c4 {[%emt 0:00:45]} c6 {[%emt 0:00:59]} 7. Nc3 {[%emt 0:02:01]} Nbd7 {[%emt 0:01:02]} 8. e4 {[%emt 0:05:33]} c5 {[%emt 0:03:42]} 9. d5 {[%emt 0:00:20]} Ng4 {[%emt 0:03:09]} 10. Qe2 {[%emt 0:06:01] E67: King's Indian: Fianchetto: 6...Nbd7.} Nge5 {[%emt 0:01:32]} 11. Nd2 {[%emt 0:02:27]} Nb6 {[%emt 0:01:03]} 12. h3 {[%emt 0:00:25] [#]} e6 $146 {[%emt 0:21:51]} ({Predecessor:} 12... Bd7 13. f4 Nexc4 14. Nxc4 Bxc3 15. bxc3 Bb5 16. Rd1 Bxc4 17. Qf2 Na4 18. Qc2 b5 {1-0 (55) Severcan,S (1842)-Kiziltas,Y (1898) Konya 2016}) 13. a4 {[%emt 0:04:50]} (13. f4 $16) 13... exd5 {[%emt 0:01:01]} 14. cxd5 {[%emt 0:00:20]} a5 {[%emt 0:03:47]} ({Better is} 14... f5 $14) 15. f4 {[%emt 0:04:53]} Ned7 {[%emt 0:00:20]} 16. Nb5 {[%emt 0:00:18]} Qe7 {[%emt 0:03:23]} 17. Re1 {[%emt 0:01:07]} Nf6 {[%emt 0:01:57]} 18. Nc4 {[%emt 0:05:07]} Nxc4 {[%emt 0:05:51]} 19. Qxc4 {[%emt 0:00:02]} Nd7 {[%emt 0:00:27]} 20. Qc2 {[%emt 0:03:29]} Nb6 {[%emt 0:09:31]} 21. Bd2 {[%emt 0:00:29]} Bd7 {[%emt 0:11:03]} 22. Bc3 {[%emt 0:06:35]} Bxb5 {[%emt 0:03:50]} 23. axb5 {[%emt 0:00:02]} a4 {[%emt 0:05:31]} 24. Bxg7 {[%emt 0:03:30]} Kxg7 {[%emt 0:00:15]} 25. Qc3+ {[%emt 0:00:10]} Kg8 {[%emt 0:00:53]} 26. e5 {[%emt 0:00:59]} Qd7 {[%emt 0:02:04]} 27. e6 {[%emt 0:03:26]} Qxb5 {[%emt 0:00:39]} 28. e7 {[%emt 0:00:19]} ({Better is} 28. f5 $1 $14) 28... Rfe8 {[%emt 0:00:33]} 29. f5 {[%emt 0:00:15]} Qc4 {[%emt 0:01:17]} 30. Qd2 {[%emt 0:03:09]} Nd7 {[%emt 0:15:40]} 31. Bf1 {[%emt 0:02:38]} Qb3 {[%emt 0:00:50]} 32. Re3 {[%emt 0:02:16]} Qb6 {[%emt 0:00:31]} 33. fxg6 {[%emt 0:01:12]} hxg6 {[%emt 0:00:37] [#]} 34. Rae1 $2 {[%emt 0:01:03]} (34. Bc4 $1 $16 {is necessary to keep the advantage.}) 34... c4 {[%emt 0:04:47]} 35. Kh1 {[%emt 0:00:39]} Qc5 {[%emt 0:01:06]} 36. Bg2 {[%emt 0:01:43]} Ra6 $2 {[%emt 0:01:00]} (36... a3 $15 {stays ahead.} 37. bxa3 Rxa3) 37. Re4 {[%emt 0:01:31]} Nf6 {[%emt 0:04:56]} 38. Rh4 {[%emt 0:02:07]} Qa5 {[%emt 0:00:21]} 39. Qd1 {[%emt 0:04:02]} Qc7 {[%emt 0:00:40]} 40. Qd4 {[%emt 0:00:00]} Nh5 {[%emt 0:00:00]} 41. Rxh5 {[%emt 0:05:09]} gxh5 {[%emt 0:01:59]} 42. Qf6 $18 {[%emt 0:00:21]} c3 {[%emt 0:10:48]} 43. Qg5+ {[%emt 0:02:21]} Kh8 {[%emt 0:00:06]} 44. Qxh5+ {[%emt 0:00:14]} Kg7 {[%emt 0:00:09]} 45. Qg5+ {[%emt 0:00:08]} Kh8 {[%emt 0:00:06]} 46. Re4 {[%emt 0:00:24]} 1-0

[Event "56th Rubinstein Memorial C 2020"]
[Site "Polanica Zdroj"]
[Date "2020.08.21"]
[Round "7.8"]
[White "Bartlomowicz, Jakub"]
[Black "Rudecki, Bartosz"]
[Result "1-0"]
[ECO "C55"]
[WhiteElo "1613"]
[BlackElo "1831"]
[Annotator "NA RC"]
[PlyCount "80"]
[EventDate "2020.08.15"]
[EventType "swiss"]
[EventCountry "POL"]
[SourceTitle "playchess.com"]
[Source "ChessBase"]
[SourceQuality "1"]
[TimeControl "40/5400+30:1800+30"]

1. e4 {[%emt 0:00:00]} e5 {[%emt 0:00:00]} 2. Nf3 {[%emt 0:00:00]} Nc6 {[%emt 0:00:25]} 3. Bc4 {[%emt 0:01:10]} Nf6 {[%emt 0:00:19]} 4. d3 {[%emt 0:00:38]} Be7 {[%emt 0:00:10]} 5. O-O {[%emt 0:00:39]} O-O {[%emt 0:00:09]} 6. c3 {[%emt 0:01:26]} d6 {[%emt 0:00:39]} 7. Re1 {[%emt 0:01:09]} Na5 {[%emt 0:00:22]} 8. Bb5 {[%emt 0:01:31]} a6 {[%emt 0:00:17]} 9. Ba4 {[%emt 0:00:06]} b5 {[%emt 0:00:02]} 10. Bc2 {[%emt 0:00:17]} c5 {[%emt 0:00:05]} 11. Nbd2 {[%emt 0:00:41]} Nc6 {[%emt 0:00:14]} 12. Nf1 {[%emt 0:00:48]} h6 {[%emt 0:01:11]} 13. h3 {[%emt 0:01:02]} Re8 {[%emt 0:00:11]} 14. Ng3 {C90: Closed Ruy Lopez with 7...d6: Early deviations.} Bf8 {[%emt 0:00:26]} 15. Be3 {[%emt 0:03:24]} g6 {[%emt 0:02:27]} (15... Bb7 $11) 16. Qd2 {[%emt 0:04:37]} Kh7 {[%emt 0:03:03]} 17. d4 {[%emt 0:00:45] [#]} cxd4 $146 {[%emt 0:05:33]} ({Predecessor:} 17... Bd7 18. d5 Na5 19. b3 Qc7 20. Nh2 Bg7 21. Rec1 Rec8 22. Bd1 Nb7 23. Ng4 Ng8 {1-0 (49) Babaev,R (2462)-Tishin,P (2407) Tula 2007}) 18. cxd4 {[%emt 0:00:38]} exd4 {[%emt 0:00:46]} 19. Nxd4 {[%emt 0:02:30]} Nxd4 {[%emt 0:02:46]} 20. Bxd4 {[%emt 0:00:31]} Bb7 {[%emt 0:02:28]} 21. Rad1 {[%emt 0:03:07]} Rc8 {[%emt 0:06:33]} 22. Bb3 {[%emt 0:03:46]} Nxe4 {[%emt 0:04:23]} 23. Qf4 {[%emt 0:03:55]} f5 {[%emt 0:03:24]} 24. Nxf5 {[%emt 0:00:28]} Qg5 {[%emt 0:00:59]} 25. Qxg5 {[%emt 0:01:08]} Nxg5 {[%emt 0:09:02]} 26. Ne3 {[%emt 0:02:22]} h5 {[%emt 0:05:55]} 27. Nd5 {[%emt 0:09:27]} Bg7 {[%emt 0:00:07]} 28. Nf6+ {[%emt 0:00:05]} Bxf6 29. Bxf6 Ne4 {[%emt 0:01:12]} 30. Bd4 {[%emt 0:00:55]} d5 {[%emt 0:03:19]} 31. Bb6 {[%emt 0:04:02]} Rc6 {[%emt 0:04:55]} 32. Ba7 {[%emt 0:05:30]} Rd6 {[%emt 0:08:06]} 33. f3 {[%emt 0:00:43]} Nf6 {[%emt 0:00:06]} 34. Rxe8 {[%emt 0:00:04]} Nxe8 {[%emt 0:00:03]} 35. Re1 {[%emt 0:00:05]} Bc6 {[%emt 0:00:50]} 36. Re7+ $18 {[%emt 0:00:17]} (36. Bc5 $142 Rd8 37. Re6) 36... Kg8 {[%emt 0:00:57]} 37. Bc5 {[%emt 0:00:11]} Rd8 {[%emt 0:06:04]} 38. Re6 {[%emt 0:00:27]} Bb7 {[%emt 0:00:49]} 39. Rxg6+ {[%emt 0:00:37]} Kh7 {[%emt 0:00:18]} 40. Bc2 Bc8 1-0

[Event "56th Rubinstein Memorial C 2020"]
[Site "Polanica Zdroj"]
[Date "2020.08.21"]
[Round "7.9"]
[White "Witkowski, Krzysztof"]
[Black "Szopa, Emilia"]
[Result "0-1"]
[ECO "B21"]
[WhiteElo "1791"]
[BlackElo "1628"]
[Annotator "NA RC"]
[PlyCount "60"]
[EventDate "2020.08.15"]
[EventType "swiss"]
[EventCountry "POL"]
[SourceTitle "playchess.com"]
[Source "ChessBase"]
[SourceQuality "1"]
[TimeControl "40/5400+30:1800+30"]

1. e4 {[%emt 0:00:00]} c5 {[%emt 0:00:00]} 2. d4 {[%emt 0:00:00]} cxd4 {[%emt 0:00:00]} 3. c3 {[%emt 0:00:00]} d5 {[%emt 0:06:13]} 4. Qxd4 {[%emt 0:00:00]} dxe4 {[%emt 0:01:32]} 5. Qxd8+ {[%emt 0:00:03]} Kxd8 {[%emt 0:00:03]} 6. Bc4 {[%emt 0:00:09]} f5 {[%emt 0:06:12]} 7. Nh3 {[%emt 0:03:19]} e5 {[%emt 0:05:47]} 8. Ng5 {[%emt 0:07:04]} Nh6 {[%emt 0:00:14]} 9. f3 {[%emt 0:00:11]} exf3 {[%emt 0:02:56]} 10. Nxf3 {[%emt 0:01:40]} Nc6 {[%emt 0:01:14]} 11. Bg5+ {[%emt 0:03:54]} Kc7 {[%emt 0:00:58]} 12. Nbd2 {[%emt 0:02:43]} Ng4 {[%emt 0:04:12]} 13. h3 {[%emt 0:01:01]} Nf6 {[%emt 0:00:07]} 14. O-O-O {[%emt 0:00:50]} Be7 {[%emt 0:11:53]} 15. Rhe1 {[%emt 0:02:03]} Bd6 {[%emt 0:09:09]} 16. Bb5 {[%emt 0:09:31]} e4 {[%emt 0:08:19]} 17. Nc4 {[%emt 0:12:41]} Bg3 {[%emt 0:05:18]} 18. Ng1 {[%emt 0:00:25]} h6 {[%emt 0:01:27]} 19. Ne2 {[%emt 0:04:48]} hxg5 {[%emt 0:03:17]} 20. Nxg3 {[%emt 0:00:30]} Be6 {[%emt 0:03:29]} 21. Nd6 {[%emt 0:22:46]} g6 {[%emt 0:04:14]} 22. Nxb7 {[%emt 0:06:24]} Kxb7 {[%emt 0:02:01]} 23. Rd6 {[%emt 0:00:08]} Nd8 {[%emt 0:02:19]} 24. Red1 {[%emt 0:02:12]} Kc7 {[%emt 0:00:37]} 25. Ne2 {[%emt 0:03:13]} Rg8 {[%emt 0:06:51]} 26. Ra6 {[%emt 0:01:04]} Nd7 {[%emt 0:01:56]} 27. Nd4 {[%emt 0:01:26]} Nc5 {[%emt 0:00:34]} 28. Nxe6+ {[%emt 0:00:10]} Ncxe6 {[%emt 0:02:41]} 29. Rd7+ {[%emt 0:08:05]} Kc8 {[%emt 0:00:49]} 30. b4 {[%emt 0:01:37]} Nc7 {[%emt 0:00:17]} 0-1